lending/lending_fUSD_20250122
["ID","MTS","AMOUNT","RATE_DAILY","PERIOD"]
[350008311,1737564640900,-500.0,0.00019178,2]
[350008313,1737564640910,-500.0,0.00019178,2]
[350008315,1737564640921,-798.72,0.00019178,2]
[350008317,1737564640930,-500.0,0.00019178,2]
[350008319,1737564640939,-500.0,0.00019178,2]
[350008320,1737564640949,-500.0,0.00019178,2]
[350008321,1737564640958,-500.0,0.00019178,2]
[350008322,1737564640967,-258.36157831,0.00019178,2]
[350008323,1737564640976,-500.0,0.00019178,2]
[350008324,1737564640985,-500.0,0.00019178,2]
[350008325,1737564640994,-500.0,0.00019178,2]
[350008326,1737564641003,-500.0,0.00019178,2]
[350008327,1737564641012,-500.0,0.00019178,2]
[350008329,1737564641021,-851.17,0.00019178,2]
[350008331,1737564641030,-500.0,0.00019178,2]
[350008333,1737564641039,-500.0,0.00019178,2]
[350008335,1737564641048,-500.0,0.00019178,2]
[350008337,1737564641059,-500.0,0.00019178,2]
[350008339,1737564641068,-500.0,0.00019178,2]
[350008341,1737564641077,-512.2650066,0.00019178,2]
[350008343,1737564641086,-754.56,0.00019178,2]
[350008345,1737564641096,-500.0,0.00019178,2]
[350008347,1737564641105,-346.17331685,0.00019178,2]
[350008349,1737564641114,-500.0,0.00019178,2]
[350008351,1737564641123,-316.01487962,0.00019178,2]
[350008353,1737564641132,-500.0,0.00019178,2]
[350008355,1737564641141,-500.0,0.00019178,2]
[350008357,1737564641150,-500.0,0.00019178,2]
[350008359,1737564641159,-940.6,0.00019178,2]
[350008361,1737564641169,-500.0,0.00019178,2]
[350008363,1737564641178,-500.0,0.00019178,2]
[350008365,1737564641187,-500.0,0.00019178,2]
[350008367,1737564641196,-937.01,0.00019178,2]
[350008368,1737564641206,-2442.30148657,0.00019178,2]
[350008370,1737564641215,-500.0,0.00019178,2]
[350008372,1737564641224,-1249.64,0.00019178,2]
[350008374,1737564641233,-500.0,0.00019178,2]
[350008376,1737564641242,-500.0,0.00019178,2]
[350008378,1737564641251,-500.0,0.00019178,2]
[350008380,1737564641268,-200.0,0.00019178,2]
[350008382,1737564641277,-500.0,0.00019178,2]
[350008384,1737564641286,-500.0,0.00019178,2]
[350008386,1737564641295,-500.0,0.00019178,2]
[350008388,1737564641305,-500.0,0.00019178,2]
[350008390,1737564641314,-510.7119614,0.00019178,2]
[350008392,1737564641324,-500.0,0.00019178,2]
[350008394,1737564641333,-500.0,0.00019178,2]
[350008396,1737564641343,-500.0,0.00019178,2]
[350008398,1737564641351,-500.0,0.00019178,2]
[350008400,1737564641361,-500.0,0.00019178,2]
[350008402,1737564641370,-500.0,0.00019178,2]
[350008404,1737564641379,-500.0,0.00019178,2]
[350008406,1737564641388,-500.0,0.00019178,2]
[350008408,1737564641398,-500.0,0.00019178,2]
[350008410,1737564641407,-500.0,0.00019178,2]
[350008412,1737564641416,-500.0,0.00019178,2]
[350008414,1737564641426,-1662.37,0.00019178,2]
[350008416,1737564641435,-557.94,0.00019178,2]
[350008418,1737564641444,-659.97,0.00019178,2]
[350008420,1737564641453,-1189.42,0.00019178,2]
[350008422,1737564641462,-500.0,0.00019178,2]
[350008424,1737564641471,-500.0,0.00019178,2]
[350008426,1737564641480,-500.0,0.00019178,2]
[350008429,1737564641490,-500.0,0.00019178,2]
[350008430,1737564641499,-510.72815144,0.00019178,2]
[350008432,1737564641508,-1115.66,0.00019178,2]
[350008434,1737564641517,-267.08841891,0.00019178,2]
[350008436,1737564641527,-500.0,0.00019178,2]
[350008438,1737564641536,-500.0,0.00019178,2]
[350008440,1737564641545,-500.0,0.00019178,2]
[350008442,1737564641554,-897.56,0.00019178,2]
[350008444,1737564641564,-500.0,0.00019178,2]
[350008446,1737564641573,-500.0,0.00019178,2]
[350008448,1737564641582,-500.0,0.00019178,2]
[350008450,1737564641591,-500.0,0.00019178,2]
[350008452,1737564641601,-500.0,0.00019178,2]
[350008454,1737564641610,-500.0,0.00019178,2]
[350008456,1737564641620,-323.24811252,0.00019178,2]
[350008458,1737564641629,-1689.73,0.00019178,2]
[350008460,1737564641638,-500.0,0.00019178,2]
[350008462,1737564641648,-500.0,0.00019178,2]
[350008464,1737564641657,-199.64505982,0.00019178,2]
[350008466,1737564641666,-500.0,0.00019178,2]
[350008468,1737564641675,-224.40944365,0.00019178,2]
[350008470,1737564641684,-500.0,0.00019178,2]
[350008472,1737564641695,-948.07,0.00019178,2]
[350008474,1737564641704,-500.0,0.00019178,2]
[350008476,1737564641713,-500.0,0.00019178,2]
[350008478,1737564641722,-500.0,0.00019178,2]
[350008480,1737564641731,-500.0,0.00019178,2]
[350008482,1737564641740,-1292.99,0.00019178,2]
[350008484,1737564641750,-500.0,0.00019178,2]
[350008486,1737564641759,-500.0,0.00019178,2]
[350008488,1737564641768,-500.0,0.00019178,2]
[350008490,1737564641777,-500.0,0.00019178,2]
[350008492,1737564641786,-501.97665642,0.00019178,2]
[350008494,1737564641795,-987.12,0.00019178,2]
[350008496,1737564641804,-500.0,0.00019178,2]
[350008498,1737564641815,-500.0,0.00019178,2]
[350008500,1737564641824,-500.0,0.00019178,2]
[350008502,1737564641833,-500.0,0.00019178,2]
[350008504,1737564641842,-330.53953458,0.00019178,2]
[350008507,1737564641860,-169.46046542,0.00019178,2]
[350008509,1737564641870,-500.0,0.00019178,2]
[350008511,1737564641878,-500.0,0.00019178,2]
[350008513,1737564641890,-500.0,0.00019178,2]
[350008515,1737564641899,-500.0,0.00019178,2]
[350008517,1737564641909,-1540.0,0.00019178,2]
[350008519,1737564641918,-500.0,0.00019178,2]
[350008521,1737564641927,-576.36,0.00019178,2]
[350008523,1737564641937,-1949.27,0.00019178,2]
[350008525,1737564641945,-500.0,0.00019178,2]
[350008526,1737564641957,-500.0,0.00019178,2]
[350008528,1737564641966,-1084.18,0.00019178,2]
[350008531,1737564641976,-500.0,0.00019178,2]
[350008532,1737564641985,-479.63908879,0.00019178,2]
[350008534,1737564641994,-500.0,0.00019178,2]
[350008536,1737564642003,-500.0,0.00019178,2]
[350008538,1737564642012,-500.0,0.00019178,2]
[350008540,1737564642021,-553.52,0.00019178,2]
[350008542,1737564642030,-574.79146163,0.00019178,2]
[350008544,1737564642040,-500.0,0.00019178,2]
[350008546,1737564642049,-500.0,0.00019178,2]
[350008549,1737564642059,-500.0,0.00019178,2]
[350008551,1737564642069,-668.03,0.00019178,2]
[350008553,1737564642078,-933.97,0.00019178,2]
[350008555,1737564642087,-1396.54,0.00019178,2]
[350008557,1737564642096,-500.0,0.00019178,2]
[350008559,1737564642106,-2807.04,0.00019178,2]
[350008561,1737564642115,-500.0,0.00019178,2]
[350008563,1737564642124,-500.0,0.00019178,2]
[350008565,1737564642133,-500.0,0.00019178,2]
[350008567,1737564642142,-640.64,0.00019178,2]
[350008569,1737564642152,-500.0,0.00019178,2]
[350008570,1737564642161,-861.9,0.00019178,2]
[350008572,1737564642171,-615.02184163,0.00019178,2]
[350008574,1737564642180,-742.82,0.00019178,2]
[350008576,1737564642189,-500.0,0.00019178,2]
[350008578,1737564642199,-2622.27,0.00019178,2]
[350008580,1737564642208,-500.0,0.00019178,2]
[350008582,1737564642217,-500.0,0.00019178,2]
[350008584,1737564642226,-528.42159974,0.00019178,2]
[350008586,1737564642235,-500.0,0.00019178,2]
[350008588,1737564642244,-394.40890062,0.00019178,2]
[350008590,1737564642253,-1147.71,0.00019178,2]
[350008592,1737564642262,-500.0,0.00019178,2]
[350008594,1737564642271,-500.0,0.00019178,2]
[350008596,1737564642280,-1397.58,0.00019178,2]
[350008598,1737564642289,-644.84,0.00019178,2]
[350008600,1737564642298,-500.0,0.00019178,2]
[350008602,1737564642308,-500.0,0.00019178,2]
[350008604,1737564642317,-500.0,0.00019178,2]
[350008606,1737564642326,-500.0,0.00019178,2]
[350008608,1737564642335,-500.0,0.00019178,2]
[350008610,1737564642344,-503.97257605,0.00019178,2]
[350008612,1737564642353,-1969.95,0.00019178,2]
[350008614,1737564642362,-1623.55,0.00019178,2]
[350008616,1737564642372,-545.31,0.00019178,2]
[350008618,1737564642381,-1125.49,0.00019178,2]
[350008620,1737564642390,-988.97,0.00019178,2]
[350008622,1737564642399,-500.0,0.00019178,2]
[350008624,1737564642408,-500.0,0.00019178,2]
[350008626,1737564642417,-500.0,0.00019178,2]
[350008628,1737564642426,-500.0,0.00019178,2]
[350008630,1737564642435,-1383.41,0.00019178,2]
[350008632,1737564642444,-500.0,0.00019178,2]
[350008634,1737564642454,-203.25805858,0.00019178,2]
[350008636,1737564642463,-3375.42,0.00019178,2]
[350008638,1737564642473,-500.0,0.00019178,2]
[350008640,1737564642481,-500.0,0.00019178,2]
[350008642,1737564642491,-500.0,0.00019178,2]
[350008644,1737564642500,-933.59,0.00019178,2]
[350008646,1737564642509,-500.0,0.00019178,2]
[350008648,1737564642518,-500.0,0.00019178,2]
[350008650,1737564642527,-500.0,0.00019178,2]
[350008652,1737564642536,-500.0,0.00019178,2]
[350008654,1737564642545,-500.0,0.00019178,2]
[350008656,1737564642554,-674.84,0.00019178,2]
[350008657,1737564642565,-788.35,0.00019178,2]
[350008658,1737564642574,-503.78184481,0.00019178,2]
[350008659,1737564642583,-2196.11,0.00019178,2]
[350008660,1737564642592,-500.0,0.00019178,2]
[350008661,1737564642601,-1102.3,0.00019178,2]
[350008662,1737564642610,-500.0,0.00019178,2]
[350008663,1737564642619,-500.0,0.00019178,2]
[350008665,1737564642628,-802.14,0.00019178,2]
[350008666,1737564642637,-500.0,0.00019178,2]
[350008668,1737564642646,-500.0,0.00019178,2]
[350008670,1737564642655,-508.36357503,0.00019178,2]
[350008672,1737564642664,-1505.78,0.00019178,2]
[350008674,1737564642673,-2637.93,0.00019178,2]
[350008676,1737564642682,-500.0,0.00019178,2]
[350008678,1737564642692,-500.0,0.00019178,2]
[350008680,1737564642701,-500.0,0.00019178,2]
[350008682,1737564642710,-500.0,0.00019178,2]
[350008684,1737564642720,-500.0,0.00019178,2]
[350008686,1737564642730,-994.03,0.00019178,2]
[350008688,1737564642739,-637.51,0.00019178,2]
[350008690,1737564642748,-501.98534336,0.00019178,2]
[350008692,1737564642757,-866.11,0.00019178,2]
[350008694,1737564642766,-524.7,0.00019178,2]
[350008696,1737564642775,-500.0,0.00019178,2]
[350008698,1737564642784,-500.0,0.00019178,2]
[350008700,1737564642793,-500.0,0.00019178,2]
[350008702,1737564642802,-500.0,0.00019178,2]
[350008704,1737564642813,-709.66,0.00019178,2]
[350008706,1737564642822,-500.0,0.00019178,2]
[350008708,1737564642831,-500.0,0.00019178,2]
[350008710,1737564642840,-500.0,0.00019178,2]
[350008726,1737564642985,-500.0,0.00019178,2]
[350008728,1737564642995,-500.0,0.00019178,2]
[350008730,1737564643005,-500.0,0.00019178,2]
[350008732,1737564643014,-500.0,0.00019178,2]
[350008734,1737564643023,-500.0,0.00019178,2]
[350008736,1737564643032,-501.90929987,0.00019178,2]
[350008738,1737564643041,-500.0,0.00019178,2]
[350008740,1737564643050,-1296.18,0.00019178,2]
[350008742,1737564643060,-500.0,0.00019178,2]
[350008744,1737564643069,-500.0,0.00019178,2]
[350008746,1737564643078,-512.0981695,0.00019178,2]
[350008748,1737564643088,-1221.77,0.00019178,2]
[350008750,1737564643096,-431.48808665,0.00019178,2]
[350008752,1737564643106,-500.0,0.00019178,2]
[350008754,1737564643115,-500.0,0.00019178,2]
[350008756,1737564643124,-1308.26,0.00019178,2]
[350008758,1737564643133,-1266.64,0.00019178,2]
[350008760,1737564643142,-500.0,0.00019178,2]
[350008762,1737564643151,-500.0,0.00019178,2]
[350008764,1737564643160,-500.0,0.00019178,2]
[350008766,1737564643170,-500.0,0.00019178,2]
[350008769,1737564643179,-500.0,0.00019178,2]
[350008772,1737564643189,-933.28,0.00019178,2]
[350008774,1737564643198,-500.0,0.00019178,2]
[350008776,1737564643207,-501.11495639,0.00019178,2]
[350008778,1737564643215,-500.0,0.00019178,2]
[350008780,1737564643224,-592.69135887,0.00019178,2]
[350008783,1737564643234,-534.28436214,0.00019178,2]
[350008785,1737564643243,-500.0,0.00019178,2]
[350008788,1737564643252,-500.0,0.00019178,2]
[350008790,1737564643261,-500.0,0.00019178,2]
[350008793,1737564643270,-500.0,0.00019178,2]
[350008795,1737564643279,-2952.64,0.00019178,2]
[350008798,1737564643289,-929.73,0.00019178,2]
[350008801,1737564643298,-500.0,0.00019178,2]
[350008805,1737564643309,-817.08,0.00019178,2]
[350008808,1737564643318,-522.56,0.00019178,2]
[350008811,1737564643327,-1594.75,0.00019178,2]
[350008814,1737564643336,-500.0,0.00019178,2]
[350008817,1737564643345,-500.0,0.00019178,2]
[350008819,1737564643354,-500.0,0.00019178,2]
[350008821,1737564643364,-500.0,0.00019178,2]
[350008823,1737564643373,-500.0,0.00019178,2]
[350008825,1737564643382,-500.0,0.00019178,2]
[350008827,1737564643391,-500.0,0.00019178,2]
[350008829,1737564643400,-500.0,0.00019178,2]
[350008831,1737564643409,-500.0,0.00019178,2]
[350008833,1737564643418,-500.0,0.00019178,2]
[350008835,1737564643428,-500.0,0.00019178,2]
[350008837,1737564643438,-500.0,0.00019178,2]
[350008839,1737564643448,-1319.68,0.00019178,2]
[350008841,1737564643457,-500.0,0.00019178,2]
[350008843,1737564643466,-500.0,0.00019178,2]
[350008845,1737564643475,-943.47,0.00019178,2]
[350008847,1737564643485,-556.38,0.00019178,2]
[350008849,1737564643494,-500.0,0.00019178,2]
[350008851,1737564643503,-505.01363652,0.00019178,2]
[350008853,1737564643512,-500.0,0.00019178,2]
[350008855,1737564643522,-500.0,0.00019178,2]
[350008857,1737564643531,-979.95,0.00019178,2]
[350008859,1737564643540,-509.27741876,0.00019178,2]
[350008861,1737564643549,-500.0,0.00019178,2]
[350008863,1737564643558,-2180.0,0.00019178,2]
[350008865,1737564643567,-500.0,0.00019178,2]
[350008867,1737564643577,-500.0,0.00019178,2]
[350008869,1737564643586,-500.0,0.00019178,2]
[350008871,1737564643595,-500.0,0.00019178,2]
[350008873,1737564643604,-500.0,0.00019178,2]
[350008875,1737564643614,-500.0,0.00019178,2]
[350008877,1737564643623,-500.0,0.00019178,2]
[350008879,1737564643632,-599.54,0.00019178,2]
[350008881,1737564643641,-506.05,0.00019178,2]
[350008883,1737564643650,-500.0,0.00019178,2]
[350008884,1737564643659,-533.16831985,0.00019178,2]
[350008886,1737564643668,-627.43753164,0.00019178,2]
[350008888,1737564643677,-567.21345459,0.00019178,2]
[350008890,1737564643686,-500.0,0.00019178,2]
[350008892,1737564643696,-503.2182087,0.00019178,2]
[350008894,1737564643705,-502.80589097,0.00019178,2]
[350008896,1737564643714,-500.0,0.00019178,2]
[350008898,1737564643722,-500.0,0.00019178,2]
[350008900,1737564643732,-616.56,0.00019178,2]
[350008902,1737564643741,-506.3051338,0.00019178,2]
[350008904,1737564643750,-703.23,0.00019178,2]
[350008906,1737564643760,-539.36392857,0.00019178,2]
[350008908,1737564643770,-1469.11,0.00019178,2]
[350008910,1737564643779,-208.492,0.00019178,2]
[350008912,1737564643788,-500.0,0.00019178,2]
[350008914,1737564643797,-500.0,0.00019178,2]
[350008916,1737564643806,-507.4186297,0.00019178,2]
[350008918,1737564643816,-500.0,0.00019178,2]
[350008920,1737564643827,-500.0,0.00019178,2]
[350008922,1737564643835,-500.0,0.00019178,2]
[350008924,1737564643845,-500.0,0.00019178,2]
[350008926,1737564643854,-500.0,0.00019178,2]
[350008928,1737564643863,-500.0,0.00019178,2]
[350008930,1737564643873,-500.0,0.00019178,2]
[350008932,1737564643885,-500.0,0.00019178,2]
[350008934,1737564643894,-500.0,0.00019178,2]
[350008936,1737564643903,-1622.79,0.00019178,2]
[350008938,1737564643912,-500.0,0.00019178,2]
[350008940,1737564643922,-192.4938656,0.00019178,2]
[350008942,1737564643932,-500.0,0.00019178,2]
[350008944,1737564643941,-508.49051132,0.00019178,2]
[350008946,1737564643950,-500.0,0.00019178,2]
[350008948,1737564643960,-500.0,0.00019178,2]
[350008950,1737564643970,-563.14,0.00019178,2]
[350008952,1737564643979,-500.0,0.00019178,2]
[350008954,1737564643987,-500.0,0.00019178,2]
[350008956,1737564643997,-500.0,0.00019178,2]
[350008958,1737564644006,-2613.81,0.00019178,2]
[350008960,1737564644015,-500.0,0.00019178,2]
[350008962,1737564644024,-904.26,0.00019178,2]
[350008964,1737564644033,-548.46,0.00019178,2]
[350008966,1737564644043,-500.0,0.00019178,2]
[350008968,1737564644052,-931.41,0.00019178,2]
[350008969,1737564644061,-500.0,0.00019178,2]
[350008970,1737564644070,-2218.6,0.00019178,2]
[350008971,1737564644079,-192.02998623,0.00019178,2]
[350008972,1737564644087,-582.87467083,0.0001921,2]
[350008973,1737564644096,-222.2,0.00019271,2]
[350008974,1737564644105,-582.87467083,0.00019314,2]
[350008975,1737564644114,-200.0,0.00019353,2]
[350008977,1737564644123,-924.0006285,0.00019392,2]
[350008978,1737564644132,-677.58006963,0.00019392,2]
[350008980,1737564644141,-582.87467083,0.00019417,2]
[350008982,1737564644150,-500.0,0.00019451,2]
[350008984,1737564644160,-500.0,0.00019451,2]
[350008986,1737564644169,-500.0,0.00019452,2]
[350008988,1737564644178,-500.0,0.00019452,2]
[350008990,1737564644187,-528.63314122,0.00019452,2]
[350008992,1737564644195,-500.0,0.00019452,2]
[350008994,1737564644204,-517.53324149,0.00019452,2]
[350008996,1737564644214,-251.11858889,0.00019452,2]
[350008998,1737564644223,-607.62413074,0.00019452,2]
[350009000,1737564644231,-500.0,0.00019452,2]
[350009002,1737564644241,-500.0,0.00019452,2]
[350009004,1737564644250,-260.21253369,0.00019452,2]
[350009006,1737564644259,-500.0,0.00019452,2]
[350009008,1737564644268,-566.80374078,0.00019452,2]
[350009010,1737564644277,-500.0,0.00019452,2]
[350009012,1737564644286,-500.0,0.00019452,2]
[350009014,1737564644295,-500.0,0.00019452,2]
[350009016,1737564644305,-500.0,0.00019452,2]
[350009018,1737564644315,-500.0,0.00019452,2]
[350009020,1737564644324,-500.0,0.00019452,2]
[350009022,1737564644333,-500.0,0.00019452,2]
[350009024,1737564644342,-500.0,0.00019452,2]
[350009026,1737564644351,-625.91017664,0.00019452,2]
[350009028,1737564644360,-500.0,0.00019452,2]
[350009030,1737564644370,-500.0,0.00019452,2]
[350009032,1737564644379,-500.0,0.00019452,2]
[350009034,1737564644388,-500.0,0.00019452,2]
[350009036,1737564644397,-462.71264887,0.00019452,2]
[350009038,1737564644406,-500.0,0.00019452,2]
[350009040,1737564644416,-500.0,0.00019452,2]
[350009042,1737564644425,-500.0,0.00019452,2]
[350009044,1737564644434,-511.34474977,0.00019452,2]
[350009046,1737564644443,-500.0,0.00019452,2]
[350009048,1737564644453,-599.2389588,0.00019452,2]
[350009050,1737564644462,-500.0,0.00019452,2]
[350009052,1737564644471,-500.0,0.00019452,2]
[350009054,1737564644481,-500.0,0.00019452,2]
[350009056,1737564644490,-500.0,0.00019452,2]
[350009059,1737564644499,-165.29888705,0.00019452,2]
[350009061,1737564644508,-500.0,0.00019452,2]
[350009062,1737564644517,-500.0,0.00019452,2]
[350009064,1737564644526,-500.0,0.00019452,2]
[350009066,1737564644535,-500.0,0.00019452,2]
[350009068,1737564644544,-195.99994048,0.00019452,2]
[350009070,1737564644554,-503.96224883,0.00019452,2]
[350009072,1737564644564,-500.0,0.00019452,2]
[350009074,1737564644573,-354.95148345,0.00019452,2]
[350009076,1737564644582,-500.0,0.00019452,2]
[350009078,1737564644591,-500.0,0.00019452,2]
[350009080,1737564644600,-500.0,0.00019452,2]
[350009082,1737564644610,-500.0,0.00019452,2]
[350009084,1737564644619,-500.0,0.00019452,2]
[350009086,1737564644628,-500.0,0.00019452,2]
[350009088,1737564644637,-500.0,0.00019452,2]
[350009090,1737564644646,-500.0,0.00019452,2]
[350009092,1737564644655,-500.0,0.00019452,2]
[350009094,1737564644664,-500.0,0.00019452,2]
[350009096,1737564644674,-500.0,0.00019452,2]
[350009098,1737564644683,-500.0,0.00019452,2]
[350009100,1737564644692,-500.0,0.00019452,2]
[350009102,1737564644701,-500.0,0.00019452,2]
[350009104,1737564644710,-495.69149901,0.00019452,2]
[350009106,1737564644719,-507.49562152,0.00019452,2]
[350009108,1737564644728,-500.0,0.00019452,2]
[350009110,1737564644738,-500.0,0.00019452,2]
[350009112,1737564644747,-500.0,0.00019452,2]
[350009114,1737564644756,-314.89610121,0.00019452,2]
[350009116,1737564644765,-521.86,0.00019452,2]
[350009118,1737564644775,-500.0,0.00019452,2]
[350009120,1737564644784,-208.42219996,0.00019452,2]
[350009122,1737564644793,-500.0,0.00019452,2]
[350009124,1737564644802,-500.0,0.00019452,2]
[350009126,1737564644812,-700.16,0.00019452,2]
[350009128,1737564644821,-653.57,0.00019452,2]
[350009130,1737564644831,-500.0,0.00019452,2]
[350009132,1737564644840,-500.0,0.00019452,2]
[350009134,1737564644849,-500.0,0.00019452,2]
[350009136,1737564644859,-500.0,0.00019452,2]
[350009138,1737564644868,-500.0,0.00019452,2]
[350009140,1737564644878,-501.2,0.00019452,2]
[350009142,1737564644890,-500.0,0.00019452,2]
[350009145,1737564644900,-500.0,0.00019452,2]
[350009146,1737564644909,-578.29,0.00019452,2]
[350009148,1737564644919,-815.2,0.00019452,2]
[350009150,1737564644929,-500.0,0.00019452,2]
[350009152,1737564644938,-500.0,0.00019452,2]
[350009154,1737564644947,-500.0,0.00019452,2]
[350009157,1737564644958,-500.0,0.00019452,2]
[350009159,1737564644968,-500.0,0.00019452,2]
[350009160,1737564644977,-500.0,0.00019452,2]
[350009162,1737564644986,-500.0,0.00019452,2]
[350009164,1737564644995,-500.0,0.00019452,2]
[350009166,1737564645004,-500.0,0.00019452,2]
[350009168,1737564645013,-500.0,0.00019452,2]
[350009170,1737564645022,-500.0,0.00019452,2]
[350009172,1737564645031,-500.0,0.00019452,2]
[350009174,1737564645041,-500.0,0.00019452,2]
[350009176,1737564645050,-500.0,0.00019452,2]
[350009178,1737564645059,-500.0,0.00019452,2]
[350009180,1737564645069,-500.0,0.00019452,2]
[350009182,1737564645078,-500.0,0.00019452,2]
[350009184,1737564645087,-597.93,0.00019452,2]
[350009186,1737564645096,-500.0,0.00019452,2]
[350009188,1737564645105,-568.16,0.00019452,2]
[350009190,1737564645115,-500.0,0.00019452,2]
[350009191,1737564645124,-216.45644759,0.00019452,2]
[350009193,1737564645133,-500.0,0.00019452,2]
[350009195,1737564645142,-500.0,0.00019452,2]
[350009197,1737564645152,-500.0,0.00019452,7]
[350009199,1737564645162,-500.0,0.00019452,2]
[350009201,1737564645172,-240.22347194,0.00019452,2]
[350009203,1737564645180,-500.0,0.00019452,2]
[350009205,1737564645189,-500.0,0.00019452,2]
[350009206,1737564645198,-693.59,0.00019452,2]
[350009208,1737564645207,-500.0,0.00019452,2]
[350009210,1737564645216,-774.01,0.00019452,2]
[350009212,1737564645226,-500.0,0.00019452,2]
[350009214,1737564645235,-500.0,0.00019452,2]
[350009216,1737564645244,-500.0,0.00019452,2]
[350009218,1737564645253,-500.0,0.00019452,2]
[350009220,1737564645262,-500.0,0.00019452,2]
[350009222,1737564645271,-678.729105,0.00019452,2]
[350009224,1737564645280,-500.0,0.00019452,2]
[350009226,1737564645290,-500.0,0.00019452,2]
[350009228,1737564645299,-500.0,0.00019452,2]
[350009230,1737564645309,-500.0,0.00019452,2]
[350009232,1737564645319,-643.99,0.00019452,2]
[350009234,1737564645328,-500.0,0.00019452,2]
[350009236,1737564645337,-500.0,0.00019452,2]
[350009238,1737564645347,-500.0,0.00019452,2]
[350009240,1737564645356,-500.0,0.00019452,2]
[350009242,1737564645365,-500.0,0.00019452,2]
[350009244,1737564645375,-500.0,0.00019452,2]
[350009246,1737564645384,-500.0,0.00019452,2]
[350009248,1737564645393,-921.053606,0.00019452,2]
[350009250,1737564645403,-500.0,0.00019452,2]
[350009252,1737564645412,-500.0,0.00019452,2]
[350009254,1737564645422,-500.0,0.00019452,2]
[350009255,1737564645432,-500.0,0.00019452,2]
[350009256,1737564645440,-500.0,0.00019452,2]
[350009257,1737564645449,-500.0,0.00019452,2]
[350009258,1737564645459,-530.18,0.00019452,2]
[350009259,1737564645469,-500.0,0.00019452,2]
[350009260,1737564645478,-301.60739543,0.00019452,2]
[350009261,1737564645487,-500.0,0.00019452,2]
[350009263,1737564645496,-501.01761524,0.00019452,2]
[350009264,1737564645505,-500.0,0.00019452,2]
[350009265,1737564645514,-500.0,0.00019452,2]
[350009267,1737564645523,-500.0,0.00019452,2]
[350009269,1737564645532,-500.0,0.00019452,2]
[350009271,1737564645541,-500.0,0.00019452,2]
[350009273,1737564645550,-500.0,0.00019452,2]
[350009289,1737564645674,-500.0,0.00019452,2]
[350009292,1737564645699,-500.0,0.00019452,2]
[350009294,1737564645709,-500.0,0.00019452,2]
[350009296,1737564645718,-500.0,0.00019452,2]
[350009298,1737564645729,-500.0,0.00019452,2]
[350009300,1737564645738,-500.0,0.00019452,2]
[350009302,1737564645747,-500.0,0.00019452,2]
[350009304,1737564645756,-855.78,0.00019452,2]
[350009306,1737564645766,-500.0,0.00019452,2]
[350009308,1737564645776,-500.0,0.00019452,2]
[350009310,1737564645786,-709.74,0.00019452,2]
[350009312,1737564645797,-500.0,0.00019452,2]
[350009314,1737564645806,-500.0,0.00019452,2]